fUST/lending_fUST_20251129
["ID","MTS","AMOUNT","RATE_DAILY","PERIOD"]
[395030665,1764352238598,-500.0,0.00016437,2]
[395030666,1764352238608,-500.0,0.00016437,2]
[395030667,1764352238618,-500.0,0.00016437,2]
[395030668,1764352238628,-330.77727481,0.00016437,2]
[395030669,1764352238637,-2930.18,0.00016437,2]
[395030670,1764352238647,-2930.18,0.00016437,2]
[395030671,1764352238658,-2930.18,0.00016437,2]
[395030672,1764352238667,-2930.18,0.00016437,2]
[395030673,1764352238678,-2930.18,0.00016437,2]
[395030674,1764352238688,-2930.18,0.00016437,2]
[395030675,1764352238697,-2930.18,0.00016437,2]
[395030676,1764352238708,-2930.18,0.00016437,2]
[395030677,1764352238718,-2930.18,0.00016437,2]
[395030678,1764352238730,-2930.18,0.00016437,2]
[395030679,1764352238739,-2930.18,0.00016437,2]
[395030680,1764352238749,-2930.18,0.00016437,2]
[395030681,1764352238759,-2930.18,0.00016437,2]
[395030682,1764352238768,-2930.18,0.00016437,2]
[395030683,1764352238778,-2930.18,0.00016437,2]
[395030684,1764352238788,-2930.18,0.00016437,2]
[395030685,1764352238797,-2930.18,0.00016437,2]
[395030686,1764352238806,-2930.18,0.00016437,2]
[395030687,1764352238816,-2930.18,0.00016437,2]
[395030688,1764352238825,-2930.18,0.00016437,2]
[395030689,1764352238834,-2930.18,0.00016437,2]
[395030690,1764352238844,-2930.20625149,0.00016437,2]
[395030691,1764352238853,-570.2836216,0.00016438,2]
[395030692,1764352238863,-500.0,0.00016438,2]
[395030693,1764352238873,-500.0,0.00016438,2]
[395030694,1764352238884,-500.0,0.00016438,2]
[395030695,1764352238893,-500.0,0.00016438,2]
[395030696,1764352238904,-500.0,0.00016438,2]
[395030697,1764352238913,-500.0,0.00016438,2]
[395030698,1764352238923,-500.0,0.00016438,2]
[395030699,1764352238933,-500.0,0.00016438,2]
[395030700,1764352238942,-550.22400672,0.00016438,2]
[395030701,1764352238951,-500.0,0.00016438,2]
[395030702,1764352238960,-500.0,0.00016438,2]
[395030703,1764352238970,-500.0,0.00016438,2]
[395030704,1764352238979,-500.0,0.00016438,2]
[395030705,1764352238989,-500.0,0.00016438,2]
[395030706,1764352238999,-500.0,0.00016438,2]
[395030707,1764352239008,-851.13,0.00016438,2]
[395030708,1764352239018,-500.0,0.00016438,2]
[395030709,1764352239027,-500.0,0.00016438,2]
[395030710,1764352239037,-500.0,0.00016438,2]
[395030711,1764352239046,-784.12,0.00016438,2]
[395030712,1764352239056,-500.0,0.00016438,2]
[395030713,1764352239065,-829.74,0.00016438,2]
[395030714,1764352239075,-500.0,0.00016438,2]
[395030715,1764352239084,-2328.59,0.00016438,2]
[395030716,1764352239094,-500.0,0.00016438,2]
[395030717,1764352239103,-500.0,0.00016438,2]
[395030718,1764352239113,-500.0,0.00016438,2]
[395030719,1764352239123,-500.0,0.00016438,2]
[395030720,1764352239132,-500.0,0.00016438,2]
[395030721,1764352239142,-500.0,0.00016438,2]
[395030722,1764352239152,-960.08,0.00016438,2]
[395030723,1764352239161,-907.86,0.00016438,2]
[395030724,1764352239171,-500.0,0.00016438,2]
[395030725,1764352239180,-524.36217502,0.00016438,2]
[395030726,1764352239190,-687.98,0.00016438,2]
[395030727,1764352239199,-506.34397798,0.00016438,2]
[395030728,1764352239209,-1292.59,0.00016438,2]
[395030729,1764352239218,-500.0,0.00016438,2]
[395030730,1764352239228,-500.0,0.00016438,2]
[395030731,1764352239238,-641.15781673,0.00016438,2]
[395030732,1764352239248,-500.0,0.00016438,2]
[395030733,1764352239257,-500.0,0.00016438,2]
[395030734,1764352239267,-170.001749,0.00016438,2]
[395030735,1764352239276,-500.9503587,0.00016438,2]
[395030736,1764352239286,-500.0,0.00016438,2]
[395030738,1764352239295,-737.72,0.00016438,2]
[395030739,1764352239304,-500.0,0.00016438,2]
[395030740,1764352239315,-187.583291,0.00016438,2]
[395030741,1764352239325,-500.0,0.00016438,2]
[395030742,1764352239335,-500.0,0.00016438,2]
[395030743,1764352239344,-500.0,0.00016438,2]
[395030744,1764352239354,-500.0,0.00016438,2]
[395030745,1764352239364,-571.93,0.00016438,2]
[395030746,1764352239373,-500.0,0.00016438,2]
[395030747,1764352239383,-500.0,0.00016438,2]
[395030748,1764352239393,-500.0,0.00016438,2]
[395030749,1764352239404,-500.0,0.00016438,2]
[395030750,1764352239422,-501.66789641,0.00016438,2]
[395030751,1764352239432,-929.04,0.00016438,2]
[395030752,1764352239443,-500.0,0.00016438,2]
[395030753,1764352239452,-500.0,0.00016438,2]
[395030754,1764352239461,-500.0,0.00016438,2]
[395030755,1764352239470,-538.13,0.00016438,2]
[395030756,1764352239481,-500.0,0.00016438,2]
[395030757,1764352239490,-500.0,0.00016438,2]
[395030758,1764352239500,-500.0,0.00016438,2]
[395030759,1764352239510,-500.0,0.00016438,2]
[395030760,1764352239519,-500.0,0.00016438,2]
[395030761,1764352239528,-500.0,0.00016438,2]
[395030762,1764352239538,-500.0,0.00016438,2]
[395030763,1764352239547,-500.0,0.00016438,2]
[395030764,1764352239556,-615.36458213,0.00016438,2]
[395030765,1764352239566,-500.0,0.00016438,2]
[395030766,1764352239576,-1045.59,0.00016438,2]
[395030767,1764352239586,-500.0,0.00016438,2]
[395030768,1764352239595,-500.0,0.00016438,2]
[395030769,1764352239604,-501.69522644,0.00016438,2]
[395030771,1764352239614,-500.0,0.00016438,2]
[395030773,1764352239623,-538.06,0.00016438,2]
[395030775,1764352239632,-500.0,0.00016438,2]
[395030776,1764352239642,-500.0,0.00016438,2]
[395030778,1764352239651,-588.19938076,0.00016438,2]
[395030780,1764352239661,-506.88689783,0.00016438,2]
[395030782,1764352239670,-500.0,0.00016438,2]
[395030784,1764352239680,-501.82613245,0.00016438,2]
[395030786,1764352239689,-609.06,0.00016438,2]
[395030788,1764352239698,-521.46,0.00016438,2]
[395030789,1764352239708,-510.26223527,0.00016438,2]
[395030790,1764352239717,-606.51,0.00016438,2]
[395030791,1764352239726,-500.0,0.00016438,2]
[395030792,1764352239736,-1056.78,0.00016438,2]
[395030793,1764352239745,-520.54031614,0.00016438,2]
[395030794,1764352239755,-916.85,0.00016438,2]
[395030795,1764352239765,-500.0,0.00016438,2]
[395030796,1764352239774,-500.0,0.00016438,2]
[395030797,1764352239784,-249.16489163,0.00016438,2]
[395030798,1764352239793,-500.0,0.00016438,2]
[395030799,1764352239803,-500.0,0.00016438,2]
[395030801,1764352239813,-500.0,0.00016438,2]
[395030803,1764352239822,-631.06,0.00016438,2]
[395030805,1764352239831,-663.17,0.00016438,2]
[395030807,1764352239840,-693.34,0.00016438,2]
[395030809,1764352239849,-500.0,0.00016438,2]
[395030810,1764352239859,-507.68312182,0.00016438,2]
[395030811,1764352239868,-500.27850478,0.00016438,2]
[395030812,1764352239878,-760.24,0.00016438,2]
[395030813,1764352239887,-500.0,0.00016438,2]
[395030815,1764352239896,-500.0,0.00016438,2]
[395030817,1764352239905,-500.0,0.00016438,2]
[395030819,1764352239914,-500.0,0.00016438,2]
[395030821,1764352239924,-508.60031839,0.00016438,2]
[395030822,1764352239933,-500.0,0.00016438,2]
[395030824,1764352239942,-500.0,0.00016438,2]
[395030826,1764352239952,-500.0,0.00016438,2]
[395030828,1764352239961,-500.0,0.00016438,2]
[395030830,1764352239971,-500.0,0.00016438,2]
[395030832,1764352239982,-405.90841454,0.00016438,2]
[395030834,1764352239992,-500.0,0.00016438,2]
[395030836,1764352240001,-500.0,0.00016438,2]
[395030839,1764352240012,-500.0,0.00016438,2]
[395030840,1764352240021,-2802.72,0.00016438,2]
[395030842,1764352240031,-891.53,0.00016438,2]
[395030844,1764352240040,-500.0,0.00016438,2]
[395030846,1764352240049,-1372.77,0.00016438,2]
[395030848,1764352240059,-1111.14,0.00016438,2]
[395030850,1764352240069,-426.91632192,0.00016438,2]
[395030852,1764352240078,-500.0,0.00016438,2]
[395030854,1764352240089,-501.77628306,0.00016438,2]
[395030856,1764352240098,-500.0,0.00016438,2]
[395030858,1764352240108,-500.0,0.00016438,2]
[395030860,1764352240117,-500.0,0.00016438,2]
[395030862,1764352240126,-500.0,0.00016438,2]
[395030864,1764352240136,-500.0,0.00016438,2]
[395030866,1764352240146,-500.0,0.00016438,2]
[395030868,1764352240155,-184.94488028,0.00016438,2]
[395030870,1764352240165,-500.25205932,0.00016438,2]
[395030876,1764352240434,-500.0,0.00016438,2]
[395030877,1764352240454,-500.0,0.00016438,2]
[395030878,1764352240464,-850.54,0.00016438,2]
[395030879,1764352240473,-500.0,0.00016438,2]
[395030880,1764352240484,-505.88399313,0.00016438,2]
[395030881,1764352240503,-211.0384716,0.00016438,2]
[395030882,1764352240514,-1484.95,0.00016438,2]
[395030883,1764352240523,-506.81479645,0.00016438,2]
[395030884,1764352240533,-774.89,0.00016438,2]
[395030885,1764352240544,-503.32728817,0.00016438,2]
[395030886,1764352240557,-322.12337395,0.00016438,2]
[395030887,1764352240575,-500.0,0.00016438,2]
[395030888,1764352240584,-304.70174672,0.00016438,2]
[395030889,1764352240594,-1061.27,0.00016438,2]
[395030890,1764352240604,-1121.91,0.00016438,2]
[395030891,1764352240614,-488.30671122,0.00016438,2]
[395030892,1764352240623,-836.81,0.00016438,2]
[395030893,1764352240633,-500.0,0.00016438,2]
[395030894,1764352240642,-500.0,0.00016438,2]
[395030895,1764352240652,-531.85547535,0.00016438,2]
[395030896,1764352240662,-521.85139044,0.00016438,2]
[395030897,1764352240672,-1182.4,0.00016438,2]
[395030898,1764352240682,-500.0,0.00016438,2]
[395030899,1764352240693,-734.9,0.00016438,2]
[395030900,1764352240702,-505.18986571,0.00016438,2]
[395030901,1764352240711,-519.55869462,0.00016438,2]
[395030902,1764352240721,-345.07695194,0.00016438,2]
[395030903,1764352240732,-500.0,0.00016438,2]
[395030904,1764352240742,-500.0,0.00016438,2]
[395030905,1764352240752,-500.0,0.00016438,2]
[395030906,1764352240762,-1124.22,0.00016438,2]
[395030907,1764352240771,-3266.35,0.00016438,2]
[395030908,1764352240781,-500.31228978,0.00016438,2]
[395030909,1764352240791,-712.9,0.00016438,2]
[395030910,1764352240802,-519.60241043,0.00016438,2]
[395030911,1764352240811,-968.75,0.00016438,2]
[395030912,1764352240821,-616.18,0.00016438,2]
[395030913,1764352240834,-500.0,0.00016438,2]
[395030914,1764352240844,-855.09,0.00016438,2]
[395030915,1764352240853,-500.0,0.00016438,2]
[395030916,1764352240863,-500.0,0.00016438,2]
[395030917,1764352240873,-500.91075386,0.00016438,2]
[395030918,1764352240883,-638.86,0.00016438,2]
[395030919,1764352240893,-356.6897931,0.00016438,2]
[395030920,1764352240903,-1123.81,0.00016438,2]
[395030921,1764352240912,-508.434253,0.00016438,2]
[395030922,1764352240921,-4347.21,0.00016438,2]
[395030923,1764352240931,-500.0,0.00016438,2]
[395030924,1764352240941,-691.36,0.00016438,2]
[395030925,1764352240950,-500.0,0.00016438,2]
[395030926,1764352240960,-1154.33,0.00016438,2]
[395030927,1764352240970,-500.0,0.00016438,2]
[395030928,1764352240980,-500.0,0.00016438,2]
[395030929,1764352240990,-729.84,0.00016438,2]
[395030930,1764352241000,-500.0,0.00016438,2]
[395030931,1764352241010,-502.11924917,0.00016438,2]
[395030932,1764352241020,-500.0,0.00016438,2]
[395030933,1764352241030,-515.08510163,0.00016438,2]
[395030934,1764352241040,-500.0,0.00016438,2]
[395030935,1764352241049,-500.0,0.00016438,2]
[395030936,1764352241058,-500.0,0.00016438,2]
[395030937,1764352241068,-1388.7,0.00016438,2]
[395030938,1764352241077,-500.0,0.00016438,2]
[395030939,1764352241087,-1478.41,0.00016438,2]
[395030940,1764352241097,-291.2201591,0.00016438,2]
[395030941,1764352241106,-500.0,0.00016438,2]
[395030942,1764352241116,-539.41,0.00016438,2]
[395030943,1764352241125,-833.04,0.00016438,2]
[395030944,1764352241135,-500.0,0.00016438,2]
[395030945,1764352241146,-500.0,0.00016438,2]
[395030946,1764352241155,-856.78,0.00016438,2]
[395030947,1764352241165,-500.0,0.00016438,2]
[395030948,1764352241175,-500.0,0.00016438,2]
[395030949,1764352241184,-500.2580219,0.00016438,2]
[395030950,1764352241194,-514.26866418,0.00016438,2]
[395030951,1764352241203,-188.16867026,0.00016438,2]
[395030952,1764352241214,-500.0,0.00016438,2]
[395030953,1764352241223,-1354.95,0.00016438,2]
[395030954,1764352241233,-501.23555793,0.00016438,2]
[395030955,1764352241243,-894.61,0.00016438,2]
[395030956,1764352241254,-500.0,0.00016438,2]
[395030957,1764352241264,-501.56165615,0.00016438,2]
[395030958,1764352241273,-893.94,0.00016438,2]
[395030959,1764352241283,-1470.0,0.00016438,2]
[395030960,1764352241292,-500.0,0.00016438,2]
[395030961,1764352241302,-500.0,0.00016438,2]
[395030962,1764352241311,-502.6733404,0.00016438,2]
[395030963,1764352241321,-500.0,0.00016438,2]
[395030964,1764352241330,-588.2303325,0.00016438,2]
[395030965,1764352241340,-500.0,0.00016438,2]
[395030966,1764352241349,-500.0,0.00016438,2]
[395030967,1764352241359,-500.0,0.00016438,2]
[395030968,1764352241368,-500.0,0.00016438,2]
[395030969,1764352241378,-500.76610525,0.00016438,2]
[395030971,1764352241388,-500.0,0.00016438,2]
[395030973,1764352241397,-1524.5,0.00016438,2]
[395030975,1764352241408,-500.0,0.00016438,2]
[395030977,1764352241417,-500.0,0.00016438,2]
[395030978,1764352241426,-621.01,0.00016438,2]
[395030981,1764352241445,-500.0,0.00016438,2]
[395030983,1764352241455,-506.23884909,0.00016438,2]
[395030985,1764352241465,-500.0,0.00016438,2]
[395030987,1764352241475,-500.0,0.00016438,2]
[395030989,1764352241488,-512.50447744,0.00016438,2]
[395030990,1764352241498,-500.0,0.00016438,2]
[395030993,1764352241509,-500.0,0.00016438,2]
[395030994,1764352241521,-500.0,0.00016438,2]
[395030996,1764352241531,-501.78360991,0.00016438,2]
[395030998,1764352241540,-500.0,0.00016438,2]
[395031000,1764352241550,-2667.99,0.00016438,2]
[395031002,1764352241560,-500.61206817,0.00016438,2]
[395031004,1764352241570,-1055.24,0.00016438,2]
[395031006,1764352241579,-500.0,0.00016438,2]
[395031007,1764352241589,-500.0,0.00016438,2]
[395031008,1764352241599,-500.0,0.00016438,2]
[395031009,1764352241608,-500.0,0.00016438,2]
[395031010,1764352241618,-500.0,0.00016438,2]
[395031012,1764352241628,-500.0,0.00016438,2]
[395031014,1764352241638,-500.0,0.00016438,2]
[395031017,1764352241647,-500.0,0.00016438,2]
[395031019,1764352241657,-624.3,0.00016438,2]
[395031020,1764352241667,-500.55553256,0.00016438,2]
[395031023,1764352241678,-610.61,0.00016438,2]
[395031025,1764352241687,-500.80056667,0.00016438,2]
[395031026,1764352241697,-524.12180345,0.00016438,2]
[395031028,1764352241706,-521.0870206,0.00016438,2]
[395031029,1764352241716,-554.16893813,0.00016438,2]
[395031032,1764352241726,-500.0,0.00016438,2]
[395031034,1764352241737,-517.59273916,0.00016438,2]
[395031036,1764352241747,-697.1,0.00016438,2]
[395031038,1764352241756,-1905.98,0.00016438,2]
[395031040,1764352241766,-260.21576752,0.00016438,2]
[395031042,1764352241775,-500.0,0.00016438,2]
[395031044,1764352241786,-1532.84,0.00016438,2]
[395031046,1764352241796,-501.43,0.00016438,2]
[395031048,1764352241805,-500.0,0.00016438,2]
[395031050,1764352241815,-1067.6,0.00016438,2]
[395031052,1764352241824,-614.05,0.00016438,2]
[395031054,1764352241833,-500.0,0.00016438,2]
[395031056,1764352241842,-500.0,0.00016438,2]
[395031058,1764352241851,-500.0,0.00016438,2]
[395031060,1764352241860,-500.0,0.00016438,2]
[395031062,1764352241870,-500.0,0.00016438,2]
[395031064,1764352241879,-500.0,0.00016438,2]
[395031066,1764352241888,-580.63,0.00016438,2]
[395031068,1764352241897,-182.65297844,0.00016438,2]
[395031070,1764352241907,-500.0,0.00016438,2]
[395031072,1764352241916,-274.85358746,0.00016438,2]
[395031074,1764352241926,-500.0,0.00016438,2]
[395031076,1764352241935,-500.0,0.00016438,2]
[395031078,1764352241944,-864.66,0.00016438,2]
[395031080,1764352241952,-500.72753935,0.00016438,2]
[395031082,1764352241962,-500.0,0.00016438,2]
[395031084,1764352241971,-500.0,0.00016438,2]
[395031086,1764352241981,-500.0,0.00016438,2]
[395031088,1764352241990,-555.28287019,0.00016438,2]
[395031090,1764352242000,-500.0,0.00016438,2]
[395031092,1764352242010,-996.38,0.00016438,2]
[395031094,1764352242019,-500.0,0.00016438,2]
[395031096,1764352242028,-517.60004573,0.00016438,2]
[395031098,1764352242038,-500.0,0.00016438,2]
[395031100,1764352242047,-513.18393098,0.00016438,2]
[395031102,1764352242056,-502.53743741,0.00016438,2]
[395031104,1764352242065,-500.0,0.00016438,2]
[395031106,1764352242075,-315.19670683,0.00016438,2]
[395031108,1764352242084,-838.82,0.00016438,2]
[395031110,1764352242093,-500.0,0.00016438,2]
[395031112,1764352242102,-500.0,0.00016438,2]
[395031113,1764352242111,-2357.46,0.00016438,2]
[395031114,1764352242121,-500.0,0.00016438,2]
[395031115,1764352242130,-500.0,0.00016438,2]
[395031116,1764352242139,-500.0,0.00016438,2]
[395031117,1764352242149,-500.0,0.00016438,2]
[395031118,1764352242159,-522.58749177,0.00016438,2]
[395031119,1764352242168,-500.0,0.00016438,2]
[395031120,1764352242177,-751.15,0.00016438,2]
[395031121,1764352242188,-446.7131651,0.00016438,2]
[395031122,1764352242197,-500.0,0.00016438,2]
[395031123,1764352242207,-549.75,0.00016438,2]
[395031124,1764352242217,-500.0,0.00016438,2]
[395031126,1764352242226,-500.0,0.00016438,2]
[395031128,1764352242235,-500.0,0.00016438,2]
[395031130,1764352242245,-662.75,0.00016438,2]
[395031132,1764352242254,-530.12,0.00016438,2]
[395031133,1764352242264,-500.0,0.00016438,2]
[395031134,1764352242273,-637.88,0.00016438,2]
[395031135,1764352242283,-500.0,0.00016438,2]
[395031136,1764352242292,-500.0,0.00016438,2]
[395031137,1764352242302,-500.0,0.00016438,2]
[395031138,1764352242312,-500.0,0.00016438,2]
[395031139,1764352242321,-500.0,0.00016438,2]
[395031140,1764352242331,-500.0,0.00016438,2]
[395031141,1764352242340,-759.36,0.00016438,2]
[395031143,1764352242350,-690.13,0.00016438,2]
[395031147,1764352242359,-500.0,0.00016438,2]
[395031150,1764352242368,-618.18,0.00016438,2]
[395031154,1764352242377,-1173.98,0.00016438,2]
[395031157,1764352242387,-1847.03,0.00016438,2]
[395031160,1764352242396,-575.49,0.00016438,2]
[395031163,1764352242405,-529.14239551,0.00016438,2]
[395031165,1764352242414,-500.0,0.00016438,2]
[395031167,1764352242424,-753.62,0.00016438,2]
[395031168,1764352242435,-500.0,0.00016438,2]
[395031170,1764352242445,-500.0,0.00016438,2]
[395031172,1764352242454,-502.04469107,0.00016438,2]
[395031174,1764352242463,-877.18,0.00016438,2]
[395031175,1764352242473,-756.24,0.00016438,2]
[395031176,1764352242483,-501.63226735,0.00016438,2]
[395031177,1764352242492,-500.0,0.00016438,2]
[395031178,1764352242501,-500.0,0.00016438,2]
[395031179,1764352242511,-500.0,0.00016438,2]
[395031180,1764352242521,-510.89458637,0.00016438,2]
[395031181,1764352242530,-2330.5,0.00016438,2]
[395031182,1764352242540,-500.0,0.00016438,2]
[395031183,1764352242550,-501.00770695,0.00016438,2]
[395031184,1764352242559,-396.75982129,0.00016438,2]
[395031185,1764352242567,-500.0,0.00016438,2]
[395031186,1764352242578,-1000.0,0.00016438,2]
[395031187,1764352242588,-678.24,0.00016438,2]
[395031188,1764352242597,-803.94,0.00016438,2]
[395031190,1764352242607,-500.0,0.00016438,2]
[395031192,1764352242616,-501.36707385,0.00016438,2]
[395031194,1764352242626,-500.0,0.00016438,2]
[395031196,1764352242636,-916.16,0.00016438,2]
[395031198,1764352242646,-500.0,0.00016438,2]
[395031200,1764352242656,-500.0,0.00016438,2]
[395031202,1764352242665,-500.0,0.00016438,2]
[395031204,1764352242674,-530.21157199,0.00016438,2]
[395031206,1764352242683,-500.0,0.00016438,2]
[395031208,1764352242693,-780.29,0.00016438,2]
[395031210,1764352242702,-948.29,0.00016438,2]
[395031212,1764352242712,-500.0,0.00016438,2]
[395031214,1764352242721,-500.0,0.00016438,2]
[395031216,1764352242731,-500.0,0.00016438,2]
[395031218,1764352242741,-500.0,0.00016438,2]
[395031220,1764352242750,-1353.01,0.00016438,2]
[395031222,1764352242760,-1235.24,0.00016438,2]
[395031224,1764352242769,-500.0,0.00016438,2]
[395031226,1764352242779,-500.0,0.00016438,2]
[395031228,1764352242789,-500.0,0.00016438,2]
[395031230,1764352242798,-1035.51,0.00016438,2]
[395031231,1764352242807,-500.0,0.00016438,2]
[395031232,1764352242816,-500.0,0.00016438,2]
[395031233,1764352242826,-3740.1,0.00016438,2]
[395031234,1764352242835,-419.93456241,0.00016438,2]
[395031235,1764352242855,-1298.98,0.00016438,2]
[395031236,1764352242865,-500.0,0.00016438,2]
[395031237,1764352242875,-1864.21,0.00016438,2]
[395031238,1764352242885,-500.0,0.00016438,2]
[395031239,1764352242894,-500.0,0.00016438,2]
[395031240,1764352242904,-548.0,0.00016438,2]
[395031241,1764352242914,-366.25565309,0.00016438,2]
[395031242,1764352242923,-500.0,0.00016438,2]
[395031243,1764352242933,-500.0,0.00016438,2]
[395031244,1764352242942,-500.0,0.00016438,2]
[395031245,1764352242952,-550.52,0.00016438,2]
[395031246,1764352242961,-500.0,0.00016438,2]
[395031247,1764352242971,-500.0,0.00016438,2]
[395031248,1764352242981,-500.0,0.00016438,2]
[395031249,1764352242991,-521.31386106,0.00016438,2]
[395031250,1764352243000,-500.0,0.00016438,2]
[395031251,1764352243010,-500.0,0.00016438,2]
[395031252,1764352243019,-500.0,0.00016438,2]
[395031253,1764352243029,-500.79120096,0.00016438,2]
[395031254,1764352243039,-501.41862554,0.00016438,2]
[395031255,1764352243049,-560.46802325,0.00016438,2]
[395031256,1764352243059,-500.0,0.00016438,2]
[395031257,1764352243068,-834.66,0.00016438,2]
[395031258,1764352243078,-500.0,0.00016438,2]
[395031259,1764352243087,-283.4,0.00016438,2]
[395031260,1764352243097,-1596.12,0.00016438,2]
[395031261,1764352243107,-1015.86,0.00016438,2]
[395031262,1764352243117,-4880.62,0.00016438,2]
[395031263,1764352243126,-534.41950289,0.00016438,2]
[395031264,1764352243136,-557.51741345,0.00016438,2]
[395031265,1764352243146,-500.0,0.00016438,2]
[395031266,1764352243156,-1488.08,0.00016438,2]
[395031267,1764352243165,-887.47,0.00016438,2]
[395031268,1764352243175,-2037.28,0.00016438,2]
[395031269,1764352243185,-500.0,0.00016438,2]
[395031270,1764352243195,-500.0,0.00016438,2]
[395031272,1764352243205,-2930.93,0.00016438,2]
[395031274,1764352243215,-700.67,0.00016438,2]
[395031276,1764352243224,-1961.73,0.00016438,2]
[395031277,1764352243235,-918.21,0.00016438,2]
[395031279,1764352243244,-1096.57,0.00016438,2]
[395031281,1764352243253,-500.0,0.00016438,2]
[395031282,1764352243262,-500.0,0.00016438,2]
[395031283,1764352243272,-500.0,0.00016438,2]
[395031284,1764352243282,-594.31,0.00016438,2]
[395031285,1764352243292,-500.0,0.00016438,2]
[395031286,1764352243301,-3179.39,0.00016438,2]
[395031287,1764352243311,-1779.7,0.00016438,2]
[395031288,1764352243320,-500.0,0.00016438,2]
[395031289,1764352243329,-500.0,0.00016438,2]
[395031290,1764352243339,-571.33,0.00016438,2]
[395031291,1764352243349,-853.04,0.00016438,2]
[395031292,1764352243359,-1688.02,0.00016438,2]
[395031293,1764352243368,-865.74,0.00016438,2]
[395031294,1764352243378,-500.0,0.00016438,2]
[395031295,1764352243387,-500.0,0.00016438,2]
[395031296,1764352243397,-500.0,0.00016438,2]
[395031297,1764352243407,-1675.15,0.00016438,2]
[395031298,1764352243417,-500.0,0.00016438,2]
[395031299,1764352243428,-500.0,0.00016438,2]
[395031300,1764352243444,-500.0,0.00016438,2]
[395031301,1764352243454,-500.0,0.00016438,2]
[395031302,1764352243464,-500.0,0.00016438,2]
[395031304,1764352243473,-500.0,0.00016438,2]
[395031306,1764352243486,-1985.77,0.00016438,2]
[395031307,1764352243496,-519.26,0.00016438,2]
[395031309,1764352243506,-975.88,0.00016438,2]
[395031311,1764352243517,-500.0,0.00016438,2]
[395031313,1764352243527,-3660.68,0.00016438,2]
[395031314,1764352243536,-500.0,0.00016438,2]
[395031316,1764352243545,-641.94,0.00016438,2]
[395031318,1764352243554,-2402.08,0.00016438,2]
[395031320,1764352243564,-500.0,0.00016438,2]
[395031322,1764352243574,-500.0,0.00016438,2]
[395031325,1764352243584,-500.0,0.00016438,2]
[395031327,1764352243594,-500.0,0.00016438,2]
[395031329,1764352243606,-1159.13,0.00016438,2]
[395031331,1764352243616,-500.0,0.00016438,2]
[395031333,1764352243626,-500.0,0.00016438,2]
[395031335,1764352243636,-500.0,0.00016438,2]
[395031337,1764352243646,-961.7,0.00016438,2]
[395031339,1764352243656,-500.0,0.00016438,2]
[395031341,1764352243665,-500.0,0.00016438,2]
[395031343,1764352243675,-500.0,0.00016438,2]
[395031345,1764352243685,-3725.47,0.00016438,2]
[395031347,1764352243694,-523.58903368,0.00016438,2]
[395031349,1764352243704,-3418.99,0.00016438,2]
[395031351,1764352243714,-500.0,0.00016438,2]
[395031353,1764352243724,-638.66,0.00016438,2]
[395031355,1764352243738,-948.45,0.00016438,2]
[395031357,1764352243748,-395.31210909,0.00016438,2]
[395031359,1764352243759,-500.92,0.00016438,2]